fUSD/lending_fUSD_20240617
["ID","MTS","AMOUNT","RATE_DAILY","PERIOD"]
[329773948,1718659877347,-55296.244966,0.00022998,2]
[329773949,1718659877356,-250519.36604858,0.00022999,2]
[329773950,1718659877366,-135417.58234178,0.00023,2]
[329773951,1718659877375,-1620.7808654,0.00023,2]
[329773952,1718659877386,-407166.8545864,0.00023,2]
[329773953,1718659877396,-159560.44540857,0.00023,2]
[329773954,1718659877405,-4175.18689802,0.00023,2]
[329773955,1718659877414,-583.0,0.00023,2]
[329773956,1718659877423,-2000.0,0.00023,2]
[329773957,1718659877432,-200.0,0.00023,2]
[329773958,1718659877442,-150.0,0.00023,2]
[329773959,1718659877452,-918.66878116,0.00023,4]
[329773960,1718659877461,-150.0,0.00023,3]
[329773961,1718659877471,-155.0,0.00023011,2]
[329773962,1718659877481,-276.19488064,0.00023012,2]
[329773963,1718659877490,-5286.81484122,0.00023013,2]
[329773964,1718659877499,-851.08,0.00023013,3]
[329773965,1718659877508,-500.0,0.00023013,3]
[329773966,1718659877519,-500.0,0.00023013,3]
[329773967,1718659877528,-295.68155102,0.00023013,3]
[329773968,1718659877538,-500.0,0.00023013,3]
[329773969,1718659877547,-500.0,0.00023013,3]
[329773970,1718659877556,-500.0,0.00023013,3]
[329773971,1718659877565,-500.0,0.00023013,3]
[329773972,1718659877579,-602.47,0.00023013,3]
[329773973,1718659877589,-500.0,0.00023013,3]
[329773974,1718659877599,-500.0,0.00023013,3]
[329773975,1718659877608,-517.47,0.00023013,3]
[329773976,1718659877619,-500.0,0.00023013,3]
[329773977,1718659877628,-500.0,0.00023013,3]
[329773978,1718659877640,-500.0,0.00023013,3]
[329773979,1718659877651,-500.0,0.00023013,3]
[329773980,1718659877660,-500.0,0.00023013,3]
[329773981,1718659877670,-500.0,0.00023013,3]
[329773982,1718659877679,-500.0,0.00023013,3]
[329773983,1718659877688,-569.08,0.00023013,3]
[329773984,1718659877698,-500.0,0.00023013,3]
[329773985,1718659877707,-500.0,0.00023013,3]
[329773986,1718659877716,-500.0,0.00023013,3]
[329773987,1718659877726,-198.22682654,0.00023013,3]
[329773988,1718659877735,-500.0,0.00023013,3]
[329773989,1718659877744,-500.0,0.00023013,3]
[329773990,1718659877752,-500.0,0.00023013,3]
[329773991,1718659877762,-500.0,0.00023013,3]
[329773992,1718659877771,-500.0,0.00023013,3]
[329773993,1718659877792,-501.06739427,0.00023013,3]
[329773994,1718659877812,-500.0,0.00023013,3]
[329773995,1718659877833,-500.0,0.00023013,3]
[329773996,1718659877857,-500.0,0.00023013,3]
[329773997,1718659877878,-500.0,0.00023013,3]
[329773998,1718659877909,-500.0,0.00023013,3]
[329773999,1718659877947,-1039.76,0.00023013,3]
[329774000,1718659877981,-870.56,0.00023013,3]
[329774001,1718659878002,-598.61564247,0.00023013,3]
[329774002,1718659878012,-500.0,0.00023013,3]
[329774003,1718659878022,-500.0,0.00023013,3]
[329774004,1718659878184,-377.55860882,0.00023013,3]
[329774005,1718659878194,-500.0,0.00023013,3]
[329774006,1718659878203,-500.0,0.00023013,3]
[329774007,1718659878212,-500.0,0.00023013,3]
[329774008,1718659878222,-500.0,0.00023013,3]
[329774009,1718659878231,-500.0,0.00023013,3]
[329774010,1718659878240,-500.0,0.00023013,3]
[329774011,1718659878249,-456.48259759,0.00023013,3]
[329774012,1718659878258,-500.0,0.00023013,3]
[329774013,1718659878267,-561.27,0.00023013,3]
[329774014,1718659878277,-500.0,0.00023013,3]
[329774015,1718659878286,-500.0,0.00023013,3]
[329774016,1718659878295,-500.0,0.00023013,3]
[329774017,1718659878304,-500.0,0.00023013,3]
[329774018,1718659878313,-500.0,0.00023013,3]
[329774019,1718659878322,-500.0,0.00023013,3]
[329774020,1718659878332,-500.0,0.00023013,3]
[329774021,1718659878341,-500.0,0.00023013,3]
[329774022,1718659878351,-500.0,0.00023013,3]
[329774023,1718659878360,-157.2410198,0.00023013,3]
[329774024,1718659878369,-500.0,0.00023013,3]
[329774025,1718659878378,-500.0,0.00023013,3]
[329774026,1718659878388,-500.0,0.00023013,3]
[329774027,1718659878397,-558.69,0.00023013,3]
[329774028,1718659878407,-500.0,0.00023013,3]
[329774029,1718659878416,-654.73,0.00023013,3]
[329774030,1718659878425,-579.88,0.00023013,3]
[329774031,1718659878434,-553.07,0.00023013,3]
[329774032,1718659878443,-500.0,0.00023013,3]
[329774033,1718659878452,-500.0,0.00023013,3]
[329774034,1718659878461,-500.0,0.00023013,3]
[329774035,1718659878471,-507.9,0.00023013,3]
[329774036,1718659878480,-500.0,0.00023013,3]
[329774037,1718659878489,-500.0,0.00023013,3]
[329774038,1718659878499,-814.99,0.00023013,3]
[329774039,1718659878508,-845.5,0.00023013,3]
[329774040,1718659878518,-960.7,0.00023013,3]
[329774041,1718659878528,-500.0,0.00023013,3]
[329774042,1718659878537,-1354.45,0.00023013,3]
[329774043,1718659878546,-500.0,0.00023013,3]
[329774044,1718659878556,-511.31,0.00023013,3]
[329774045,1718659878566,-673.35,0.00023013,3]
[329774046,1718659878580,-500.0,0.00023013,3]
[329774047,1718659878590,-1169.87,0.00023013,3]
[329774048,1718659878599,-500.0,0.00023013,3]
[329774049,1718659878609,-675.91,0.00023013,3]
[329774050,1718659878619,-545.87,0.00023013,3]
[329774051,1718659878628,-1143.5,0.00023013,3]
[329774052,1718659878638,-530.66,0.00023013,3]
[329774053,1718659878648,-687.4,0.00023013,3]
[329774054,1718659878661,-500.0,0.00023013,3]
[329774055,1718659878671,-500.0,0.00023013,3]
[329774056,1718659878680,-500.0,0.00023013,3]
[329774057,1718659878690,-500.0,0.00023013,3]
[329774058,1718659878699,-500.0,0.00023013,3]
[329774059,1718659878708,-1611.86,0.00023013,3]
[329774060,1718659878717,-1085.89,0.00023013,3]
[329774061,1718659878727,-500.0,0.00023013,3]
[329774062,1718659878735,-500.0,0.00023013,3]
[329774063,1718659878745,-936.49,0.00023013,3]
[329774064,1718659878754,-500.0,0.00023013,3]
[329774065,1718659878763,-500.0,0.00023013,3]
[329774066,1718659878772,-500.0,0.00023013,2]
[329774067,1718659878782,-500.0,0.00023013,3]
[329774068,1718659878791,-500.0,0.00023013,3]
[329774069,1718659878800,-500.0,0.00023013,3]
[329774070,1718659878809,-598.38,0.00023013,3]
[329774071,1718659878819,-500.0,0.00023013,3]
[329774072,1718659878828,-500.0,0.00023013,3]
[329774073,1718659878837,-500.0,0.00023013,3]
[329774074,1718659878846,-500.0,0.00023013,3]
[329774075,1718659878857,-776.47,0.00023013,3]
[329774076,1718659878866,-500.0,0.00023013,3]
[329774077,1718659878875,-500.0,0.00023013,3]
[329774078,1718659878898,-500.0,0.00023013,3]
[329774079,1718659878919,-706.57,0.00023013,3]
[329774080,1718659878939,-617.86,0.00023013,3]
[329774081,1718659878962,-1655.71,0.00023013,3]
[329774082,1718659878981,-1339.62,0.00023013,3]
[329774083,1718659879001,-721.63,0.00023013,3]
[329774084,1718659879020,-500.0,0.00023013,3]
[329774085,1718659879042,-500.0,0.00023013,3]
[329774086,1718659879064,-510.74,0.00023013,3]
[329774087,1718659879086,-596.3,0.00023013,3]
[329774088,1718659879106,-500.0,0.00023013,3]
[329774089,1718659879116,-500.0,0.00023013,3]
[329774090,1718659879125,-518.09,0.00023013,3]
[329774091,1718659879135,-500.0,0.00023013,3]
[329774092,1718659879147,-1038.56,0.00023013,3]
[329774093,1718659879156,-500.0,0.00023013,3]
[329774094,1718659879165,-500.0,0.00023013,3]
[329774095,1718659879175,-500.0,0.00023013,3]
[329774096,1718659879184,-837.5,0.00023013,3]
[329774097,1718659879194,-500.0,0.00023013,3]
[329774098,1718659879203,-500.0,0.00023013,3]
[329774099,1718659879213,-500.0,0.00023013,3]
[329774100,1718659879222,-500.0,0.00023013,3]
[329774101,1718659879232,-500.0,0.00023013,3]
[329774102,1718659879241,-500.0,0.00023013,3]
[329774103,1718659879250,-500.0,0.00023013,3]
[329774104,1718659879259,-794.48,0.00023013,3]
[329774105,1718659879269,-797.61,0.00023013,3]
[329774106,1718659879279,-500.0,0.00023013,3]
[329774107,1718659879288,-500.0,0.00023013,3]
[329774108,1718659879298,-1495.56,0.00023013,3]
[329774109,1718659879307,-500.0,0.00023013,3]
[329774110,1718659879316,-829.1,0.00023013,3]
[329774111,1718659879326,-639.11,0.00023013,3]
[329774112,1718659879335,-500.0,0.00023013,3]
[329774113,1718659879344,-631.93,0.00023013,3]
[329774114,1718659879353,-526.38,0.00023013,3]
[329774115,1718659879363,-500.0,0.00023013,3]
[329774116,1718659879372,-500.0,0.00023013,3]
[329774117,1718659879381,-500.0,0.00023013,3]
[329774118,1718659879392,-1216.14,0.00023013,3]
[329774119,1718659879401,-500.0,0.00023013,3]
[329774120,1718659879411,-675.33,0.00023013,3]
[329774121,1718659879420,-500.0,0.00023013,3]
[329774122,1718659879429,-500.0,0.00023013,3]
[329774123,1718659879439,-500.0,0.00023013,3]
[329774124,1718659879448,-899.28,0.00023013,3]
[329774125,1718659879457,-1211.55,0.00023013,3]
[329774126,1718659879467,-509.36,0.00023013,3]
[329774127,1718659879477,-558.22,0.00023013,3]
[329774128,1718659879486,-835.63,0.00023013,3]
[329774129,1718659879495,-500.0,0.00023013,3]
[329774130,1718659879505,-500.0,0.00023013,3]
[329774131,1718659879514,-899.66,0.00023013,3]
[329774132,1718659879524,-500.0,0.00023013,3]
[329774133,1718659879533,-722.01,0.00023013,3]
[329774134,1718659879543,-630.3,0.00023013,3]
[329774135,1718659879552,-635.56,0.00023013,3]
[329774136,1718659879561,-960.01,0.00023013,3]
[329774137,1718659879572,-500.0,0.00023013,3]
[329774138,1718659879586,-1535.49,0.00023013,3]
[329774139,1718659879595,-500.0,0.00023013,3]
[329774140,1718659879604,-500.0,0.00023013,3]
[329774141,1718659879613,-728.42,0.00023013,3]
[329774142,1718659879624,-593.09,0.00023013,3]
[329774143,1718659879633,-193.36599178,0.00023013,3]
[329774144,1718659879644,-849.15,0.00023013,3]
[329774145,1718659879655,-500.0,0.00023013,3]
[329774146,1718659879664,-838.15,0.00023013,3]
[329774147,1718659879674,-500.0,0.00023013,3]
[329774148,1718659879682,-500.0,0.00023013,3]
[329774149,1718659879691,-500.0,0.00023013,3]
[329774150,1718659879700,-500.0,0.00023013,3]
[329774151,1718659879710,-500.0,0.00023013,3]
[329774152,1718659879719,-731.67,0.00023013,3]
[329774153,1718659879728,-1207.04,0.00023013,3]
[329774154,1718659879737,-500.0,0.00023013,3]
[329774155,1718659879747,-842.15,0.00023013,3]
[329774156,1718659879756,-500.0,0.00023013,3]
[329774157,1718659879765,-1490.64,0.00023013,3]
[329774158,1718659879774,-500.0,0.00023013,3]
[329774159,1718659879784,-559.89,0.00023013,3]
[329774160,1718659879793,-500.0,0.00023013,3]
[329774161,1718659879802,-557.87,0.00023013,3]
[329774162,1718659879811,-500.0,0.00023013,3]
[329774163,1718659879820,-500.0,0.00023013,3]
[329774164,1718659879829,-806.01,0.00023013,3]
[329774165,1718659879838,-622.27,0.00023013,3]
[329774166,1718659879847,-500.0,0.00023013,3]
[329774167,1718659879857,-520.61,0.00023013,3]
[329774168,1718659879866,-817.55,0.00023013,3]
[329774169,1718659879875,-580.98,0.00023013,3]
[329774170,1718659879884,-500.0,0.00023013,3]
[329774171,1718659879895,-500.0,0.00023013,3]
[329774172,1718659879904,-500.0,0.00023013,3]
[329774173,1718659879913,-1505.56,0.00023013,3]
[329774174,1718659879923,-500.0,0.00023013,3]
[329774175,1718659879932,-625.25,0.00023013,3]
[329774176,1718659879941,-1273.59,0.00023013,3]
[329774177,1718659879950,-500.0,0.00023013,3]
[329774178,1718659879959,-500.0,0.00023013,3]
[329774179,1718659879968,-500.0,0.00023013,3]
[329774180,1718659879977,-751.89,0.00023013,3]
[329774181,1718659879986,-500.0,0.00023013,3]
[329774182,1718659879995,-500.0,0.00023013,3]
[329774183,1718659880004,-562.6,0.00023013,3]
[329774184,1718659880014,-500.0,0.00023013,3]
[329774185,1718659880023,-500.0,0.00023013,3]
[329774186,1718659880032,-940.0,0.00023013,3]
[329774187,1718659880042,-858.79,0.00023013,3]
[329774188,1718659880051,-607.3,0.00023013,3]
[329774189,1718659880060,-420.01581773,0.00023013,3]
[329774190,1718659880069,-500.0,0.00023013,3]
[329774191,1718659880078,-500.0,0.00023013,3]
[329774192,1718659880087,-555.64,0.00023013,3]
[329774193,1718659880096,-500.0,0.00023013,3]
[329774194,1718659880106,-500.0,0.00023013,3]
[329774195,1718659880116,-909.16,0.00023013,3]
[329774196,1718659880125,-500.0,0.00023013,3]
[329774197,1718659880135,-500.0,0.00023013,3]
[329774198,1718659880146,-615.36502511,0.00023013,3]
[329774199,1718659880155,-511.35,0.00023013,3]
[329774200,1718659880165,-500.0,0.00023013,3]
[329774201,1718659880175,-521.59,0.00023013,3]
[329774202,1718659880184,-500.0,0.00023013,3]
[329774203,1718659880193,-644.6,0.00023013,3]
[329774204,1718659880202,-500.0,0.00023013,3]
[329774205,1718659880211,-500.0,0.00023013,3]
[329774206,1718659880220,-500.0,0.00023013,3]
[329774207,1718659880229,-938.6,0.00023013,3]
[329774208,1718659880237,-500.0,0.00023013,3]
[329774209,1718659880247,-1776.44,0.00023013,3]
[329774210,1718659880256,-500.0,0.00023013,3]
[329774211,1718659880265,-500.0,0.00023013,3]
[329774212,1718659880274,-564.08,0.00023013,3]
[329774213,1718659880283,-1327.33,0.00023013,3]
[329774214,1718659880292,-508.36,0.00023013,3]
[329774215,1718659880301,-500.0,0.00023013,3]
[329774216,1718659880310,-500.0,0.00023013,3]
[329774217,1718659880319,-500.0,0.00023013,3]
[329774218,1718659880328,-500.0,0.00023013,3]
[329774219,1718659880338,-500.0,0.00023013,3]
[329774220,1718659880347,-935.93,0.00023013,3]
[329774221,1718659880356,-1182.23,0.00023013,3]
[329774222,1718659880366,-500.0,0.00023013,3]
[329774223,1718659880376,-1176.87,0.00023013,3]
[329774224,1718659880386,-500.0,0.00023013,3]
[329774225,1718659880399,-500.0,0.00023013,3]
[329774226,1718659880409,-500.0,0.00023013,3]
[329774227,1718659880420,-1862.89,0.00023013,3]
[329774228,1718659880430,-1496.28,0.00023013,3]
[329774229,1718659880440,-1446.6,0.00023013,3]
[329774230,1718659880450,-500.0,0.00023013,3]
[329774231,1718659880460,-500.0,0.00023013,3]
[329774232,1718659880476,-687.93,0.00023013,3]
[329774233,1718659880487,-500.0,0.00023013,3]
[329774234,1718659880498,-500.0,0.00023013,3]
[329774235,1718659880508,-905.35,0.00023013,3]
[329774236,1718659880519,-500.0,0.00023013,3]
[329774237,1718659880531,-500.0,0.00023013,3]
[329774238,1718659880542,-500.0,0.00023013,3]
[329774239,1718659880552,-753.05,0.00023013,3]
[329774240,1718659880563,-500.0,0.00023013,3]
[329774241,1718659880580,-500.0,0.00023013,3]
[329774242,1718659880590,-339.05,0.00023013,3]
[329774243,1718659880602,-500.0,0.00023013,3]
[329774244,1718659880614,-1338.37,0.00023013,3]
[329774245,1718659880625,-543.82,0.00023013,3]
[329774246,1718659880636,-500.0,0.00023013,3]
[329774247,1718659880658,-1539.59,0.00023013,3]
[329774248,1718659880669,-500.0,0.00023013,3]
[329774249,1718659880681,-500.0,0.00023013,3]
[329774250,1718659880693,-526.41,0.00023013,3]
[329774251,1718659880705,-1130.75,0.00023013,3]
[329774252,1718659880716,-1010.28,0.00023013,3]
[329774253,1718659880726,-707.27,0.00023013,3]
[329774254,1718659880738,-500.0,0.00023013,3]
[329774255,1718659880749,-500.0,0.00023013,3]
[329774256,1718659880760,-268.13845539,0.00023013,3]
[329774257,1718659880770,-500.0,0.00023013,3]
[329774258,1718659880783,-671.09,0.00023013,3]
[329774259,1718659880794,-715.35,0.00023013,3]
[329774260,1718659880805,-500.0,0.00023013,3]
[329774261,1718659880980,-500.0,0.00023013,3]
[329774262,1718659880990,-1584.56,0.00023013,3]
[329774263,1718659881000,-889.13,0.00023013,3]
[329774264,1718659881010,-500.0,0.00023013,3]
[329774265,1718659881019,-500.0,0.00023013,3]
[329774266,1718659881028,-1173.09,0.00023013,3]
[329774267,1718659881037,-726.31,0.00023013,3]
[329774268,1718659881047,-529.24,0.00023013,3]
[329774269,1718659881056,-500.0,0.00023013,3]
[329774270,1718659881066,-500.0,0.00023013,3]
[329774271,1718659881076,-500.0,0.00023013,3]
[329774272,1718659881086,-812.53,0.00023013,3]
[329774273,1718659881096,-500.0,0.00023013,3]
[329774274,1718659881105,-519.9,0.00023013,3]
[329774275,1718659881114,-1800.18,0.00023013,3]
[329774276,1718659881123,-1845.61,0.00023013,3]
[329774277,1718659881133,-500.0,0.00023013,3]
[329774278,1718659881149,-500.0,0.00023013,3]
[329774279,1718659881160,-1110.29,0.00023013,3]
[329774280,1718659881171,-885.21,0.00023013,3]
[329774281,1718659881181,-563.75,0.00023013,3]
[329774282,1718659881190,-500.0,0.00023013,3]
[329774283,1718659881200,-542.93,0.00023013,3]
[329774284,1718659881210,-2577.51,0.00023013,3]
[329774285,1718659881219,-428.50588192,0.00023013,3]
[329774286,1718659881229,-500.0,0.00023013,3]
[329774287,1718659881238,-500.0,0.00023013,3]
[329774288,1718659881248,-1151.82,0.00023013,3]
[329774289,1718659881257,-500.0,0.00023013,3]
[329774290,1718659881267,-500.0,0.00023013,3]
[329774291,1718659881276,-2475.78,0.00023013,3]
[329774292,1718659881286,-891.4,0.00023013,3]
[329774293,1718659881296,-943.28,0.00023013,3]
[329774294,1718659881306,-561.11,0.00023013,3]
[329774295,1718659881316,-500.0,0.00023013,3]
[329774296,1718659881326,-500.0,0.00023013,3]
[329774297,1718659881335,-5445.19,0.00023013,3]
[329774298,1718659881344,-795.8,0.00023013,3]
[329774299,1718659881353,-500.0,0.00023013,3]
[329774300,1718659881364,-5063.07,0.00023013,3]
[329774301,1718659881375,-736.05,0.00023013,3]
[329774302,1718659881385,-1051.04,0.00023013,3]
[329774303,1718659881400,-500.0,0.00023013,3]
[329774304,1718659881410,-612.82,0.00023013,3]
[329774305,1718659881420,-938.6,0.00023013,3]
[329774306,1718659881429,-500.0,0.00023013,3]
[329774307,1718659881439,-500.0,0.00023013,3]
[329774308,1718659881448,-500.0,0.00023013,3]
[329774309,1718659881457,-732.74,0.00023013,3]
[329774310,1718659881468,-13105.05,0.00023013,3]
[329774311,1718659881478,-663.57,0.00023013,3]
[329774312,1718659881487,-1884.39,0.00023013,3]
[329774313,1718659881496,-946.37,0.00023013,3]
[329774314,1718659881506,-24796.58,0.00023013,3]
[329774315,1718659881515,-500.0,0.00023013,3]
[329774316,1718659881524,-1395.53,0.00023013,3]
[329774317,1718659881534,-861.72,0.00023013,3]
[329774318,1718659881543,-45848.89,0.00023013,3]
[329774319,1718659881552,-582.63,0.00023013,3]
[329774320,1718659881562,-500.0,0.00023013,3]
[329774321,1718659881577,-625.34,0.00023013,3]
[329774322,1718659881587,-40734.25,0.00023013,3]
[329774323,1718659881596,-3641.97,0.00023013,3]
[329774324,1718659881605,-500.0,0.00023013,3]
[329774325,1718659881616,-500.0,0.00023013,3]
[329774326,1718659881626,-500.0,0.00023013,3]
[329774327,1718659881635,-500.0,0.00023013,3]
[329774328,1718659881649,-1346.26,0.00023013,3]
[329774329,1718659881661,-919.56,0.00023013,3]
[329774330,1718659881673,-611.32,0.00023013,3]
[329774331,1718659881683,-1929.83,0.00023013,3]
[329774332,1718659881693,-1029.45,0.00023013,3]
[329774333,1718659881702,-1612.11,0.00023013,3]
[329774334,1718659881711,-1795.42,0.00023013,3]
[329774335,1718659881720,-1689.75,0.00023013,3]
[329774336,1718659881729,-500.0,0.00023013,3]
[329774337,1718659881739,-1760.28,0.00023013,3]
[329774338,1718659881748,-3986.14,0.00023013,3]
[329774339,1718659881757,-500.0,0.00023013,3]
[329774340,1718659881766,-500.0,0.00023013,3]
[329774341,1718659881775,-3413.63,0.00023013,3]
[329774342,1718659881784,-500.0,0.00023013,3]
[329774343,1718659881794,-500.0,0.00023013,3]
[329774344,1718659881803,-1162.75,0.00023013,3]
[329774345,1718659881812,-2366.68,0.00023013,3]
[329774346,1718659881822,-962.27,0.00023013,3]
[329774347,1718659881831,-4743.74,0.00023013,3]
[329774348,1718659881841,-504.04,0.00023013,3]
[329774349,1718659881850,-766.87,0.00023013,3]
[329774350,1718659881859,-500.0,0.00023013,3]
[329774351,1718659881868,-500.0,0.00023013,3]
[329774352,1718659881878,-2923.2,0.00023013,3]
[329774353,1718659881887,-44064.04,0.00023013,3]
[329774354,1718659881900,-3031.07,0.00023013,3]
[329774355,1718659881910,-1907.06,0.00023013,3]
[329774356,1718659881919,-511.54,0.00023013,3]
[329774357,1718659881928,-510.13,0.00023013,3]
[329774358,1718659881937,-1384.51,0.00023013,3]
[329774359,1718659881946,-877.85,0.00023013,3]
[329774360,1718659881955,-500.0,0.00023013,3]
[329774361,1718659881965,-500.0,0.00023013,3]
[329774362,1718659881974,-2670.23,0.00023013,3]
[329774363,1718659881983,-624.56,0.00023013,3]
[329774364,1718659881992,-1860.02,0.00023013,3]
[329774365,1718659882001,-927.48,0.00023013,3]
[329774366,1718659882011,-500.0,0.00023013,3]
[329774367,1718659882020,-500.0,0.00023013,3]
[329774368,1718659882029,-600.25,0.00023013,3]
[329774369,1718659882038,-5402.63,0.00023013,3]
[329774370,1718659882047,-2592.2,0.00023013,3]
[329774371,1718659882056,-609.48,0.00023013,3]
[329774372,1718659882065,-500.0,0.00023013,3]
[329774373,1718659882074,-943.5,0.00023013,3]
[329774374,1718659882083,-6003.43,0.00023013,3]
[329774375,1718659882093,-1656.4,0.00023013,3]
[329774376,1718659882102,-500.0,0.00023013,3]
[329774377,1718659882110,-714.58,0.00023013,3]
[329774378,1718659882120,-1088.34,0.00023013,3]
[329774379,1718659882129,-500.0,0.00023013,3]
[329774380,1718659882138,-3234.9,0.00023013,3]
[329774381,1718659882153,-3840.82,0.00023013,3]
[329774382,1718659882163,-1151.77,0.00023013,3]
[329774383,1718659882172,-563.42,0.00023013,3]
[329774384,1718659882181,-2372.34,0.00023013,3]
[329774385,1718659882190,-4734.28,0.00023013,3]
[329774386,1718659882199,-9024.98,0.00023013,3]
[329774387,1718659882208,-12675.1,0.00023013,3]
[329774388,1718659882217,-751.27,0.00023013,3]
[329774389,1718659882226,-500.0,0.00023013,3]
[329774390,1718659882235,-500.0,0.00023013,3]
[329774391,1718659882244,-653.0,0.00023013,3]
[329774392,1718659882252,-500.0,0.00023013,3]
[329774393,1718659882261,-961.69,0.00023013,3]
[329774394,1718659882270,-3815.97,0.00023013,3]
[329774395,1718659882279,-1757.46,0.00023013,3]
[329774396,1718659882288,-512.33,0.00023013,3]
[329774397,1718659882297,-514.44,0.00023013,3]
[329774398,1718659882306,-867.11,0.00023013,3]
[329774399,1718659882316,-500.0,0.00023013,3]
[329774400,1718659882325,-500.0,0.00023013,3]
[329774401,1718659882334,-808.16,0.00023013,3]
[329774402,1718659882343,-500.0,0.00023013,3]
[329774403,1718659882352,-7239.13,0.00023013,3]
[329774404,1718659882362,-2414.87,0.00023013,3]
[329774405,1718659882371,-3862.01,0.00023013,3]
[329774406,1718659882380,-7813.63,0.00023013,3]
[329774407,1718659882389,-654.39,0.00023013,3]
[329774408,1718659882403,-4897.34,0.00023013,3]
[329774409,1718659882413,-7257.19,0.00023013,3]
[329774410,1718659882422,-867.67,0.00023013,3]
[329774411,1718659882431,-1811.59,0.00023013,3]
[329774412,1718659882440,-500.0,0.00023013,3]
[329774413,1718659882449,-918.09,0.00023013,3]
[329774414,1718659882457,-685.52,0.00023013,3]
[329774415,1718659882467,-4039.07,0.00023013,3]
[329774416,1718659882476,-500.0,0.00023013,3]
[329774417,1718659882486,-4908.63,0.00023013,3]
[329774418,1718659882496,-886.49,0.00023013,3]
[329774419,1718659882505,-3878.53,0.00023013,3]
[329774420,1718659882514,-1399.11,0.00023013,3]
[329774421,1718659882523,-3526.27,0.00023013,3]
[329774422,1718659882532,-10586.16,0.00023013,3]
[329774423,1718659882542,-1724.57,0.00023013,3]
[329774424,1718659882551,-2051.42,0.00023013,3]
[329774425,1718659882561,-948.98,0.00023013,3]
[329774426,1718659882571,-500.0,0.00023013,3]
[329774427,1718659882580,-860.6,0.00023013,3]
[329774428,1718659882593,-544.54,0.00023013,3]
[329774429,1718659882603,-990.03,0.00023013,3]
[329774430,1718659882612,-782.5,0.00023013,3]
[329774431,1718659882622,-4818.24,0.00023013,3]
[329774432,1718659882632,-666.87,0.00023013,3]
[329774433,1718659882642,-1013.86,0.00023013,3]
[329774434,1718659882656,-500.0,0.00023013,3]
[329774435,1718659882668,-14255.96,0.00023013,3]
[329774436,1718659882679,-4204.33,0.00023013,3]
[329774437,1718659882689,-500.0,0.00023013,3]
[329774438,1718659882699,-516.8,0.00023013,3]
[329774439,1718659882708,-2809.35,0.00023013,3]
[329774440,1718659882718,-8488.95,0.00023013,3]
[329774441,1718659882727,-3972.26,0.00023013,3]
[329774442,1718659882737,-516.03,0.00023013,3]
[329774443,1718659882747,-862.81,0.00023013,3]
[329774444,1718659882758,-859.26,0.00023013,3]
[329774445,1718659882768,-1639.81,0.00023013,3]
[329774446,1718659882778,-4487.66,0.00023013,3]
[329774447,1718659882788,-500.0,0.00023013,3]